bitfinex-derivatives/quotes_ETHF0:USTF0_20250507
["timestamp","ask_amount","ask_price","bid_price","bid_amount"]
[1746587315760,2.81855,1825.7,1825.6,3.2078]
[1746587317055,6.41855,1825.7,1825.6,3.2078]
[1746587319869,1.09576,1825.3,1825.2,3.2078]
[1746587320069,1.09582,1825.2,1825.1,10.02690925]
[1746587320269,1.6626,1825.2,1825.1,10.02690925]
[1746587320569,0.8333,1825.3,1825.2,1.09582]
[1746587320769,2.5402,1825.4,1825.3,1.09576]
[1746587320963,1.09564,1825.6,1825.3,0.8704]
[1746587321167,1.09564,1825.6,1825.5,1.09562]
[1746587321365,11.08806,1825.7,1825.6,1.09558]
[1746587321677,1.0957,1825.4,1825.3,3.6]
[1746587321860,12.8785,1825.4,1825.3,3.6]
[1746587322060,17.8785,1825.4,1825.3,0.3052781]
[1746587322261,1.09582,1825.2,1825.1,7.31832925]
[1746587322457,1.096,1824.9,1824.8,3.3683]
[1746587322660,1.096,1824.9,1824.8,4.46436]
[1746587322870,1.096,1824.9,1824.8,3.3683]
[1746587323364,1.096,1824.9,1824.8,4.46436]
[1746587323667,1.94177,1825.0,1824.8,4.46436]
[1746587323868,1.94177,1825.0,1824.9,1.6357]
[1746587327163,1.09597,1825.0,1824.9,2.7317]
[1746587327368,1.6779,1825.1,1824.9,1.6357]
[1746587327570,2.77381,1825.1,1825.0,1.6637]
[1746587328367,1.09591,1825.1,1825.0,2.75964]
[1746587328668,1.09588,1825.1,1825.0,2.75964]
[1746587328868,1.09588,1825.1,1825.0,1.6637]
[1746587329271,2.68848,1825.1,1825.0,2.75964]
[1746587329469,1.09588,1825.1,1825.0,1.6637]
[1746587330476,1.09587,1825.2,1825.1,1.09588]
[1746587330670,1.09587,1825.2,1825.1,0.8228]
[1746587330870,1.09587,1825.2,1825.1,1.91868]
[1746587331063,1.09587,1825.2,1825.1,2.5069]
[1746587331270,1.09587,1825.2,1825.1,3.60278]
[1746587332273,1.09576,1825.3,1825.2,1.09582]
[1746587332473,1.09576,1825.3,1825.2,2.5233]
[1746587333073,2.75426,1825.3,1825.2,2.5233]
[1746587333275,2.75426,1825.3,1825.2,3.61912]
[1746587333674,2.75426,1825.3,1825.2,2.5233]
[1746587334875,1.09594,1825.0,1824.9,4.263]
[1746587335079,1.09594,1825.0,1824.9,10.2224]
[1746587335671,1.09594,1825.0,1824.9,0.8319]
[1746587335872,2.5084,1825.1,1824.7,2.5115]
[1746587336072,1.6656,1824.9,1824.8,1.09606]
[1746587336271,1.6656,1824.9,1824.8,2.77486]
[1746587336686,2.76164,1824.9,1824.8,1.6788]
[1746587337071,1.6656,1824.9,1824.7,1.6604]
[1746587337275,1.09612,1824.7,1824.6,2.77495]
[1746587337480,2.76171,1824.8,1824.7,1.09612]
[1746587337679,2.76166,1824.8,1824.7,1.6788]
[1746587338582,2.76166,1824.8,1824.7,2.77492]
[1746587338884,1.92422,1824.9,1824.8,1.09606]
[1746587339086,5.89988,1825.0,1824.9,1.096]
[1746587339283,4.8039,1825.0,1824.7,1.0961]
[1746587339584,1.09612,1824.7,1824.6,4.46155]
[1746587339786,1.09612,1824.7,1824.6,3.3654]
[1746587340084,1.09612,1824.7,1824.6,0.8077]
[1746587340476,3.51032,1824.7,1824.6,0.8077]
[1746587342082,1.09636,1824.4,1824.3,1.09634]
[1746587342280,1.09642,1824.2,1824.1,0.8019]
[1746587342584,1.09654,1824.0,1823.9,9.66844616]
[1746587342782,1.09654,1824.0,1823.9,7.31832925]
[1746587343089,4.30434,1824.0,1823.9,7.31832925]
[1746587344883,1.09654,1824.0,1823.9,7.31832925]
[1746587345080,1.89554,1824.0,1823.9,7.31832925]
[1746587345387,5.10334,1824.0,1823.9,7.31832925]
[1746587345586,9.42534,1824.0,1823.9,7.31832925]
[1746587346188,13.02534,1824.0,1823.9,7.31832925]
[1746587347991,13.02534,1824.0,1823.6,1.09675]
[1746587347992,1.09672,1823.7,1823.6,1.09675]
[1746587348591,1.0969,1823.4,1823.3,3.2078]
[1746587348891,1.09696,1823.3,1823.2,1.09699]
[1746587349093,1.09696,1823.3,1823.2,2.75139]
[1746587349984,1.6964,1823.4,1823.3,1.09696]
[1746587350285,2.7933,1823.4,1823.3,2.75136]
[1746587350486,2.7933,1823.4,1823.3,1.6544]
[1746587350681,1.6964,1823.4,1823.3,1.09696]
[1746587351784,2.79334,1823.4,1823.3,1.09696]
[1746587352391,1.09708,1823.1,1823.0,1.91721]
[1746587352694,1.09708,1823.1,1823.0,3.58571]
[1746587353591,1.90227,1823.2,1823.1,1.09708]
[1746587354293,1.90227,1823.2,1823.1,2.76558]
[1746587355795,3.54779,1823.2,1822.6,3.2078]
[1746587355983,3.54779,1823.2,1822.7,1.09732]
[1746587355984,1.09731,1822.8,1822.7,1.09732]
[1746587356185,1.09731,1822.8,1822.7,2.69782]
[1746587356489,1.09731,1822.8,1822.7,1.6005]
[1746587356894,2.75071,1822.8,1822.7,1.6005]
[1746587357294,2.75071,1822.8,1822.7,2.69782]
[1746587358693,2.75071,1822.8,1822.7,1.09732]
[1746587359690,1.6534,1822.8,1822.7,1.09732]
[1746587359893,5.1724,1823.1,1822.7,4.40191]
[1746587360202,5.1724,1823.1,1822.8,1.09724]
[1746587360203,1.0972,1822.9,1822.8,1.09724]
[1746587360491,1.09726,1822.8,1822.7,3.6]
[1746587360688,2.80846,1822.8,1822.7,3.6]
[1746587361291,1.7112,1822.8,1822.6,1.09735]
[1746587361495,1.7112,1822.7,1822.6,1.09738]
[1746587361698,1.0974,1822.6,1822.5,1.0974]
[1746587362094,2.8086,1822.6,1822.5,1.0974]
[1746587362594,1.7112,1822.6,1822.5,1.0974]
[1746587362796,2.80232,1822.7,1822.6,1.09738]
[1746587363186,4.51352,1822.7,1822.6,1.09738]
[1746587363500,3.4162,1822.7,1822.6,1.09738]
[1746587363698,3.2078,1822.8,1822.7,1.09732]
[1746587363998,4.30506,1822.8,1822.7,1.09732]
[1746587364196,3.2078,1822.8,1822.7,1.09732]
[1746587364804,2.7391,1822.9,1822.8,1.09726]
[1746587364991,2.7391,1822.9,1822.8,2.74016]
[1746587366101,4.311,1823.0,1822.9,1.0972]
[1746587366400,2.73901,1823.1,1823.0,1.09714]
[1746587366902,4.30486,1823.2,1823.1,1.09708]
[1746587367403,11.4688,1823.3,1823.2,1.09702]
[1746587367593,11.4688,1823.3,1823.1,2.73303]
[1746587367796,1.09702,1823.2,1823.1,2.73303]
[1746587368100,10.3718,1823.3,1823.2,1.09702]
[1746587368302,6.0318,1823.3,1823.2,2.73302]
[1746587368601,6.0318,1823.3,1823.0,3.6]
[1746587368896,4.30488,1823.1,1823.0,3.6]
[1746587369089,1.0972,1822.9,1822.8,1.09722]
[1746587369705,1.09726,1822.8,1822.7,1.713]
[1746587370011,5.7347,1822.9,1822.5,2.74362]
[1746587370209,2.80978,1822.8,1822.7,1.09727]
[1746587370508,5.11945,1822.9,1822.8,1.09726]
[1746587370709,1.09729,1822.8,1822.7,1.09729]
[1746587371009,2.80979,1822.8,1822.7,1.09729]
[1746587371908,1.7125,1822.8,1822.7,1.09729]
[1746587372600,5.11945,1822.9,1822.8,1.09726]
[1746587373209,1.09726,1822.8,1822.7,2.77548]
[1746587373406,2.73156,1822.8,1822.7,1.6782]
[1746587373604,1.09738,1822.6,1822.5,2.7167]
[1746587374309,1.6343,1822.6,1822.5,2.7167]
[1746587374506,1.6343,1822.6,1822.5,4.3949]
[1746587374702,4.0222,1822.9,1822.5,8.2975]
[1746587374703,3.2078,1822.9,1822.5,8.2975]
[1746587374903,3.2078,1823.5,1823.0,2.74286]
[1746587375208,3.2078,1823.5,1822.5,6.6193]
[1746587375209,4.30464,1823.5,1823.4,1.0969]
[1746587375404,3.2078,1823.5,1823.4,1.0969]
[1746587375809,4.30469,1823.5,1823.4,1.0969]
[1746587376009,3.2078,1823.5,1823.4,1.0969]
[1746587376304,3.2078,1823.5,1823.4,4.6969]
[1746587376911,5.9793,1823.8,1823.4,4.6969]
[1746587377114,7.07597,1823.8,1823.7,1.09672]
[1746587377314,1.09672,1823.7,1823.6,1.09674]
[1746587377612,1.6328,1823.7,1823.6,1.09674]
[1746587378316,2.72952,1823.7,1823.6,1.09674]
[1746587378611,2.72956,1823.7,1823.6,1.09678]
[1746587379610,1.09678,1823.6,1823.5,2.7174]
[1746587379811,1.5946,1823.6,1823.5,1.0968]
[1746587380211,2.69138,1823.6,1823.5,4.6968]
[1746587380511,1.5946,1823.6,1823.5,4.6968]
[1746587381008,3.2078,1823.9,1823.5,6.8078]
[1746587381207,1.5946,1823.8,1823.6,1.6187]
[1746587381513,2.69128,1823.8,1823.7,1.09672]
[1746587382211,2.69128,1823.8,1823.7,4.69672]
[1746587382409,1.5946,1823.8,1823.7,4.69672]
[1746587384916,2.78608,1824.0,1823.7,3.6]
[1746587385111,1.09662,1823.9,1823.8,1.09661]
[1746587385308,2.83082,1823.9,1823.8,1.09661]
[1746587386405,1.7342,1823.9,1823.8,1.09661]
[1746587386712,2.8308,1823.9,1823.8,1.09661]
[1746587388312,1.91239,1824.0,1823.9,1.0966]
[1746587388709,3.67399,1824.0,1823.9,1.0966]
[1746587392821,1.09702,1823.2,1823.1,7.31832925]
[1746587393020,1.09714,1823.0,1822.9,14.50177547]
[1746587393223,1.09726,1822.8,1822.7,12.13444762]
[1746587393417,13.10106,1822.8,1822.7,12.13444762]
[1746587394118,16.70106,1822.8,1822.7,12.13444762]
[1746587394622,21.70106,1822.8,1822.7,12.13444762]
[1746587395617,16.70106,1822.8,1822.7,12.13444762]
[1746587396226,16.69506,1822.8,1822.7,12.13444762]
[1746587396730,18.36536,1822.8,1822.7,12.13444762]
[1746587397134,1.09756,1822.4,1822.2,1.6648]
[1746587397334,4.30536,1822.4,1822.2,1.6648]
[1746587397533,4.30536,1822.4,1822.3,0.03424925]
[1746587398037,3.2078,1822.4,1822.3,5.03424925]
[1746587398235,1.09746,1822.5,1822.3,6.95878925]
[1746587398438,1.09746,1822.5,1822.4,1.7502]
[1746587398735,4.30526,1822.5,1822.4,6.78444925]
[1746587399129,4.30526,1822.5,1822.4,1.78444925]
[1746587400634,4.30526,1822.5,1822.4,0.03424925]
[1746587400834,1.09756,1822.3,1822.2,1.7255]
[1746587401233,4.30536,1822.3,1822.2,1.75974925]
[1746587401427,1.09756,1822.3,1822.2,1.75974925]
[1746587401731,1.09756,1822.4,1822.2,2.85731925]
[1746587401934,1.0975,1822.4,1822.3,0.03424925]
[1746587404537,2.7467,1822.4,1822.3,0.03424925]
[1746587405036,1.0975,1822.4,1822.3,1.13180925]
[1746587405440,1.0975,1822.4,1822.3,0.03424925]
[1746587405640,1.0975,1822.4,1822.3,1.13180925]
[1746587405837,1.0975,1822.4,1822.3,0.03424925]
[1746587408443,1.0975,1822.4,1822.3,1.13180925]
[1746587408641,4.30528,1822.5,1822.4,1.0975]
[1746587408843,4.30528,1822.5,1822.4,2.77314925]
[1746587409143,4.30528,1822.5,1822.4,6.37314925]
[1746587409445,1.09748,1822.5,1822.4,6.37314925]
[1746587409644,1.09748,1822.5,1822.4,5.27564925]
[1746587409845,4.30528,1822.5,1822.4,5.27564925]
[1746587410344,4.30528,1822.5,1822.4,1.67564925]
[1746587416240,4.30528,1822.5,1822.4,2.77314925]
[1746587417545,1.09735,1822.7,1822.4,7.77314925]
[1746587417846,4.30515,1822.7,1822.6,1.13157925]
[1746587418344,4.30515,1822.7,1822.6,3.57727925]
[1746587418750,3.2078,1822.9,1822.6,2.47994925]
[1746587418945,3.2078,1822.9,1822.8,1.13150925]
[1746587419142,4.305,1822.9,1822.8,1.13150925]
[1746587419547,3.2078,1822.9,1822.8,1.13150925]
[1746587420157,3.2078,1822.9,1822.8,4.73150925]
[1746587421546,1.09708,1823.1,1823.0,1.09708]
[1746587421749,1.09708,1823.1,1823.0,1.13132925]
[1746587422145,1.09708,1823.1,1823.0,6.40162925]
[1746587422749,3.2078,1823.2,1823.1,1.09708]
[1746587422949,3.2078,1823.2,1823.1,1.95552925]
[1746587423250,3.2078,1823.6,1823.1,6.95552925]
[1746587423441,4.30462,1823.6,1823.5,1.13108925]
[1746587423640,4.30462,1823.6,1823.5,0.03424925]
[1746587423849,4.30462,1823.6,1823.5,1.6703]
[1746587424237,4.30462,1823.6,1823.5,2.76714]
[1746587424647,4.30462,1823.6,1823.5,1.6703]
[1746587425647,4.30462,1823.6,1823.5,2.76714]
[1746587426251,3.2078,1823.6,1823.5,2.80138925]
[1746587426643,1.6499,1823.8,1823.7,1.09672]
[1746587426644,4.8577,1823.8,1823.7,1.09672]
[1746587426846,5.95436,1823.8,1823.7,0.03424925]
[1746587427149,4.8577,1823.8,1823.7,1.09672]
[1746587427349,4.8577,1823.8,1823.7,2.68302]
[1746587428751,5.95441,1823.8,1823.7,2.68302]
[1746587429049,5.95441,1823.8,1823.7,1.5863]
[1746587429453,5.95441,1823.8,1823.7,2.68302]
[1746587431049,4.8577,1823.8,1823.7,2.68302]
[1746587431250,5.95436,1823.8,1823.7,2.68302]
[1746587432754,5.95436,1823.8,1823.7,2.71726925]
[1746587434560,5.95436,1823.8,1823.7,1.62054925]
[1746587436255,1.0969,1823.5,1823.3,0.805]
[1746587436461,3.2078,1823.5,1823.4,1.6118]
[1746587436649,3.2078,1823.5,1823.4,1.64604925]
[1746587436848,4.30469,1823.5,1823.4,2.74292925]
[1746587440864,3.2078,1823.5,1823.4,2.74292925]
[1746587442169,6.84161,1823.8,1823.7,1.09672]
[1746587442368,6.84161,1823.8,1823.7,1.13096925]
[1746587442570,6.84161,1823.8,1823.7,1.09672]
[1746587443472,6.84161,1823.8,1823.7,1.13096925]
[1746587443676,3.2078,1823.8,1823.7,1.92496925]
[1746587444072,3.2078,1823.8,1823.7,5.52496925]
[1746587444364,9.35384912,1824.0,1823.9,1.0966]
[1746587444569,1.0966,1823.9,1823.8,2.68312]
[1746587444770,1.0966,1823.9,1823.8,2.71736925]
[1746587445368,10.45042912,1824.0,1823.9,1.0966]
[1746587445567,10.45042912,1824.0,1823.9,2.8494]
[1746587448174,0.10964912,1824.0,1823.9,2.88364925]
[1746587448365,3.2078,1824.2,1824.1,1.09648]
[1746587448565,3.2078,1824.2,1824.1,1.13072925]
[1746587448966,3.2078,1824.2,1824.1,2.77142925]
[1746587449368,3.2078,1824.2,1824.1,23.87142925]
[1746587449566,3.2078,1824.2,1824.1,25.53312925]
[1746587457174,3.2078,1824.4,1824.3,1.09636]
[1746587457369,3.2078,1824.4,1824.3,1.13060925]
[1746587460180,3.2078,1824.6,1824.5,1.09624]
[1746587460574,1.7011,1824.7,1824.6,1.09618]
[1746587460771,1.7011,1824.7,1824.6,2.87342925]
[1746587462584,2.79722,1824.7,1824.6,2.87342925]
[1746587463284,1.7011,1824.7,1824.6,2.87342925]
[1746587463678,2.79722,1824.7,1824.6,2.87342925]
[1746587463885,1.09618,1824.6,1824.5,4.69623]
[1746587464083,1.5927,1824.6,1824.5,4.69623]
[1746587464384,5.89668,1824.6,1824.5,1.09623]
[1746587464577,4.8005,1824.6,1824.5,1.09623]
[1746587465189,4.8005,1824.6,1824.5,4.69623]
[1746587466783,5.89668,1824.6,1824.5,4.69623]
[1746587467881,5.89668,1824.6,1824.5,3.6]
[1746587468092,5.89668,1824.6,1824.5,4.69624]
[1746587472705,5.89668,1824.6,1824.5,3.6]
[1746587475009,10.89668,1824.6,1824.5,3.6]
[1746587475209,1.09642,1824.2,1824.1,22.19644]
[1746587475404,4.30422,1824.2,1824.1,22.19644]
[1746587475705,4.30422,1824.2,1824.1,22.23068925]
[1746587477406,5.16512,1824.2,1824.1,22.23068925]
[1746587478813,5.16512,1824.2,1824.1,23.88808925]
[1746587479002,5.16512,1824.2,1824.1,1.69164925]
[1746587479203,1.09648,1824.1,1824.0,4.6965]
[1746587479503,2.71218,1824.1,1824.0,3.6]
[1746587479706,2.71218,1824.1,1824.0,4.69654]
[1746587481313,2.71218,1824.1,1824.0,6.39774]
[1746587483316,5.16515,1824.2,1824.1,1.09648]
[1746587483518,5.16515,1824.2,1824.1,3.62962925]
[1746587483813,5.16515,1824.2,1824.1,2.4989]
[1746587486116,5.16515,1824.2,1824.1,1.6642]
[1746587486517,1.09648,1824.1,1824.0,3.6]
[1746587486817,3.55048,1824.1,1824.0,3.6]
[1746587487214,1.09654,1824.0,1823.9,23.6647]
[1746587487416,5.91394,1824.0,1823.9,23.69894925]
[1746587487620,5.91394,1824.0,1823.9,21.1]
[1746587488016,4.30427,1824.2,1824.1,1.09648]
[1746587488316,3.2078,1824.2,1824.1,1.13072925]
[1746587488520,4.30422,1824.2,1824.1,1.13072925]
[1746587488714,4.30422,1824.2,1824.1,2.76742925]
[1746587488914,7.9206924,1824.2,1824.1,2.76742925]
[1746587493026,4.30422,1824.2,1824.1,2.76742925]
[1746587497230,3.2078,1824.2,1824.1,2.76742925]
[1746587497627,4.30422,1824.2,1824.1,2.76742925]
[1746587498529,3.2078,1824.2,1824.1,2.76742925]
[1746587499029,4.30422,1824.2,1824.1,2.76742925]
[1746587504634,4.30422,1824.2,1824.1,2.73318]
[1746587504934,4.30422,1824.2,1824.1,2.76742925]
[1746587505534,4.30422,1824.2,1824.1,1.67094925]
[1746587505931,5.92742,1824.2,1824.1,1.67094925]
[1746587506134,5.92742,1824.2,1824.1,2.76742925]
[1746587508135,7.9206924,1824.2,1824.1,2.76742925]
[1746587510436,7.9206924,1824.2,1824.1,1.67094925]
[1746587510841,9.6295924,1824.2,1824.1,1.67094925]
[1746587511146,6.01312,1824.2,1824.1,1.67094925]
[1746587512645,1.09648,1824.1,1824.0,3.6]
[1746587512848,3.55608,1824.1,1824.0,3.6]
[1746587513145,1.97068,1824.1,1824.0,6.41794]
[1746587513346,1.09648,1824.1,1824.0,6.41794]
[1746587513742,1.09648,1824.1,1824.0,6.45218925]
[1746587514449,4.7129524,1824.1,1824.0,6.45218925]
[1746587515650,4.7129524,1824.1,1824.0,5.35564925]
[1746587515836,4.7129524,1824.1,1824.0,5.3214]
[1746587516040,6.4732524,1824.1,1824.0,3.6]
[1746587516242,1.0966,1823.9,1823.8,1.6402]
[1746587516445,4.3044,1823.9,1823.8,22.77444925]
[1746587516640,4.3044,1823.9,1823.8,21.97114925]
[1746587516843,6.0647,1823.9,1823.8,21.13424925]
[1746587517045,6.0647,1823.9,1823.8,0.03424925]
[1746587517261,6.0647,1823.9,1823.8,3.63424925]
[1746587519948,6.0647,1823.9,1823.8,3.6]
[1746587520648,11.4894086,1823.9,1823.8,3.6]
[1746587523445,9.7291086,1823.9,1823.8,5.26034925]
[1746587524658,11.5373448,1823.9,1823.8,5.26034925]
[1746587526256,13.2102448,1823.9,1823.8,5.26034925]
[1746587527051,5.9773,1823.9,1823.8,5.26034925]
[1746587527451,4.3044,1823.9,1823.8,5.26034925]
[1746587528855,4.3044,1823.9,1823.8,6.35700925]
[1746587529058,1.0966,1823.9,1823.8,6.35700925]
[1746587529264,12.6415348,1824.0,1823.9,1.0966]
[1746587529562,7.2329448,1824.0,1823.9,3.70454925]
[1746587530257,7.2329448,1824.0,1823.9,7.30454925]
[1746587531461,9.11763001,1824.0,1823.9,7.30454925]
[1746587535667,4.30428,1824.1,1824.0,1.09654]
[1746587535853,4.30428,1824.1,1824.0,3.65428925]
[1746587536163,4.30428,1824.1,1824.0,6.1235]
[1746587536364,6.90618,1824.1,1824.0,6.1235]
[1746587538168,6.90618,1824.1,1824.0,7.22004]
[1746587538360,4.30428,1824.1,1824.0,7.22004]
[1746587539364,4.30428,1824.1,1824.0,7.25428925]
[1746587539365,8.67837801,1824.1,1824.0,7.25428925]
[1746587540465,9.77485801,1824.1,1824.0,7.25428925]
[1746587542863,7.95303576,1824.1,1824.0,7.25428925]
[1746587544570,7.95303576,1824.1,1824.0,6.15774925]
[1746587544971,7.95303576,1824.1,1824.0,7.25428925]
[1746587546371,6.85655576,1824.1,1824.0,7.25428925]
[1746587547077,7.95303576,1824.1,1824.0,7.25428925]
[1746587548677,4.30428,1824.1,1824.0,7.25428925]
[1746587549270,4.30428,1824.1,1824.0,3.6]
[1746587549565,4.30428,1824.1,1824.0,7.12234]
[1746587549775,4.30428,1824.1,1824.0,7.15658925]
[1746587550377,4.30428,1824.1,1824.0,6.06004925]
[1746587550574,4.30428,1824.1,1824.0,3.6]
[1746587550768,11.01308,1824.1,1824.0,3.6]
[1746587551270,1.09666,1823.8,1823.7,0.8765]
[1746587551478,4.30446,1823.8,1823.7,0.91074925]
[1746587551881,4.30446,1823.8,1823.7,2.00746925]
[1746587552177,4.30446,1823.8,1823.7,5.60746925]
[1746587552577,4.30446,1823.8,1823.7,7.25796925]
[1746587555977,7.95198024,1823.8,1823.7,7.25796925]
[1746587556475,7.95198024,1823.8,1823.7,6.16124925]
[1746587556676,7.95198024,1823.8,1823.7,7.25796925]
[1746587558581,6.85532024,1823.8,1823.7,7.25796925]
[1746587559381,6.85532024,1823.8,1823.7,12.25796925]
[1746587559685,5.47128036,1823.9,1823.8,1.09666]
[1746587559875,5.47128036,1823.9,1823.8,3.55290925]
[1746587560282,5.47128036,1823.9,1823.8,7.15290925]
[1746587560489,3.64775265,1823.9,1823.8,7.15290925]
[1746587564492,4.30439,1824.0,1823.9,1.0966]
[1746587564687,4.30439,1824.0,1823.9,2.80554925]
[1746587565096,4.30439,1824.0,1823.9,6.40554925]
[1746587565291,3.2078,1824.0,1823.9,6.40554925]
[1746587566193,4.30434,1824.0,1823.9,6.40554925]
[1746587566593,3.2078,1824.0,1823.9,6.40554925]
[1746587569101,12.37334036,1824.2,1824.1,1.09648]
[1746587570299,12.37334036,1824.2,1824.1,2.78088]
[1746587570599,5.47128036,1824.2,1824.1,2.81512925]
[1746587570794,5.47128036,1824.2,1824.1,4.45342925]
[1746587571597,5.47128036,1824.3,1824.2,1.09642]
[1746587571794,5.47128036,1824.3,1824.2,7.06876925]
[1746587572196,5.47128036,1824.3,1824.2,10.66876925]
[1746587573304,3.2078,1824.6,1824.2,10.66876925]
[1746587573602,3.2078,1826.7,1825.8,1.09546]
[1746587573799,95.76521587,1826.9,1824.7,14.583]
[1746587573800,3.2078,1826.5,1826.0,3.2078]
[1746587573994,3.2078,1826.5,1826.3,1.09512]
[1746587574294,1.5871,1826.4,1826.3,1.09512]
[1746587574494,5.8731,1826.4,1826.3,1.09512]
[1746587574897,5.8731,1826.4,1826.2,5.58219]
[1746587575302,5.8731,1826.4,1826.3,1.09516]
[1746587575899,10.8731,1826.4,1826.2,4.69522]
[1746587576092,3.2078,1826.3,1826.2,4.69522]
[1746587576295,4.7949,1826.3,1826.2,1.09522]
[1746587576697,1.5871,1826.3,1826.2,1.09522]
[1746587578302,1.5871,1826.3,1826.1,1.09525]
[1746587578906,4.283,1826.2,1826.1,1.09528]
[1746587579506,4.8218,1826.2,1826.1,1.09528]
[1746587579695,4.8218,1826.2,1825.8,4.9369]
[1746587579696,4.8218,1826.2,1826.0,1.0953]
[1746587579902,4.283,1826.1,1825.9,1.09535]
[1746587580106,1.684,1826.0,1825.9,1.09535]
[1746587582105,1.684,1826.0,1825.9,4.69535]
[1746587582808,5.966,1826.0,1825.9,4.69535]
[1746587583408,9.1738,1826.0,1825.9,4.69535]
[1746587583707,4.8918,1826.0,1825.9,4.69535]
[1746587583907,9.1738,1826.0,1825.9,4.69535]
[1746587584209,9.1738,1826.0,1825.9,3.6]
[1746587584398,10.26914,1826.0,1825.9,3.6]
[1746587584805,9.1738,1826.0,1825.9,3.6]
[1746587585311,9.1738,1826.0,1825.9,4.6954]
[1746587585811,10.26914,1826.0,1825.9,3.6]
[1746587586212,1.09541,1825.9,1825.5,2.739]
[1746587586407,4.8019,1825.8,1825.7,1.09552]
[1746587587111,4.8019,1825.8,1825.7,4.69552]
[1746587590715,5.89736,1825.8,1825.7,4.69552]
[1746587590915,6.69996,1825.8,1825.7,4.69552]
[1746587591113,5.6045,1825.8,1825.7,4.69552]
[1746587591613,6.69996,1825.8,1825.7,4.69552]
[1746587592507,6.69996,1825.8,1825.7,3.6]
[1746587593005,6.69996,1825.8,1825.7,4.69552]
[1746587594415,6.69996,1825.8,1825.7,1.09552]
[1746587594714,5.6045,1825.8,1825.7,1.09552]
[1746587594910,11.16096,1825.8,1825.7,1.09552]
[1746587595116,11.16096,1825.8,1825.7,4.69552]
[1746587595419,11.16096,1825.8,1825.7,3.6]
[1746587595717,15.0655,1825.8,1825.3,1.09572]
[1746587595904,4.3035,1825.4,1825.3,1.09572]
[1746587596110,1.09578,1825.3,1825.2,1.09577]
[1746587596310,7.27578,1825.3,1825.2,1.09577]
[1746587597508,1.09585,1825.2,1825.1,1.09583]
[1746587597707,2.81485,1825.2,1825.1,1.09583]
[1746587599919,1.719,1825.2,1825.1,1.09583]
[1746587600620,3.08292296,1825.3,1825.2,1.09582]
[1746587601010,4.906,1825.4,1825.3,1.09576]
[1746587601307,8.4977,1825.4,1825.3,1.09576]
[1746587601508,9.5934,1825.4,1825.3,1.09576]
[1746587601813,5.1324,1825.4,1825.3,1.09576]
[1746587602013,9.5944,1825.4,1825.3,1.09576]
[1746587602917,1.09576,1825.3,1825.2,2.84197]
[1746587603926,2.72036,1825.3,1825.2,1.7462]
[1746587604327,2.72036,1825.3,1825.2,2.84202]
[1746587608623,2.72036,1825.3,1825.2,1.7462]
[1746587609329,2.72036,1825.3,1825.2,2.84202]
[1746587611728,2.72036,1825.3,1825.2,1.7462]
[1746587611928,1.09592,1825.1,1825.0,1.09589]
[1746587612136,5.55792,1825.1,1825.0,2.84369]
[1746587612533,7.30022,1825.1,1825.0,2.84369]
[1746587613138,7.30022,1825.1,1825.0,1.7478]
[1746587613828,7.30022,1825.1,1825.0,2.84374]
[1746587615237,7.30022,1825.1,1825.0,1.7478]
[1746587615631,6.2043,1825.1,1824.8,0.8633]
[1746587615838,1.096,1824.9,1824.8,0.8633]
[1746587616335,1.09606,1824.8,1824.7,2.84122]
[1746587616522,5.48006,1824.8,1824.7,2.84122]
[1746587616932,7.13796,1824.8,1824.7,2.84122]
[1746587617734,7.13796,1824.8,1824.5,11.30118895]
[1746587617735,9.2497,1824.8,1824.5,7.25038895]
[1746587617934,4.30398,1824.6,1824.5,8.34662895]
[1746587618123,4.30398,1824.6,1824.5,8.83668895]
[1746587620132,4.30398,1824.6,1824.4,0.8672]
[1746587620133,1.09624,1824.5,1824.4,0.8672]
[1746587620330,1.09636,1824.3,1824.2,0.829]
[1746587620730,1.09636,1824.3,1824.2,1.92542]
[1746587620930,1.09644,1824.2,1824.1,1.09645]
[1746587621226,5.48144,1824.2,1824.1,0.829]
[1746587622431,7.19504,1824.2,1824.1,0.829]
[1746587623137,7.19604,1824.2,1824.1,0.829]
[1746587623541,2.81004,1824.2,1824.1,1.92548]
[1746587623734,7.19604,1824.2,1824.1,1.92548]
[1746587624739,7.19604,1824.2,1824.1,0.829]
[1746587626536,10.40384,1824.2,1824.1,0.829]
[1746587626743,1.09657,1824.0,1823.8,0.7982]
[1746587626940,1.09657,1824.0,1823.9,1.09656]
[1746587627138,5.48257,1824.0,1823.9,1.09656]
[1746587628537,1.0966,1823.9,1823.8,1.89482]
[1746587629042,1.0966,1823.9,1823.8,0.7982]
[1746587629248,2.7803,1823.9,1823.8,0.7982]
[1746587629944,1.09672,1823.7,1823.6,1.09676]
[1746587630143,5.48272,1823.7,1823.6,0.8271]
[1746587630640,5.48272,1823.7,1823.6,1.92388]
[1746587630841,5.48272,1823.7,1823.6,0.8271]
[1746587631036,5.48272,1823.7,1823.6,1.92388]
[1746587631437,4.387,1823.7,1823.6,0.8271]
[1746587631643,4.387,1823.7,1823.6,1.92388]
[1746587632246,1.09664,1823.9,1823.8,1.09662]
[1746587632546,5.48364,1823.9,1823.8,1.09662]
[1746587634746,1.09666,1823.8,1823.7,2.80738]
[1746587635245,1.09666,1823.8,1823.7,1.7107]
[1746587635844,1.09666,1823.8,1823.7,2.80742]
[1746587637547,2.76376,1823.8,1823.7,1.7107]
[1746587637740,1.09672,1823.7,1823.6,0.8271]
[1746587637941,2.76382,1823.7,1823.6,1.92388]
[1746587638140,2.76382,1823.7,1823.6,3.55488]
[1746587639152,7.15082,1823.7,1823.6,3.55488]